Workbook

Sheet 1. Forside
A1: Esbjerg Spildevand A/S
D8: Bilag A
D13: Indholdsfortegnelse
C16: Fane nr. 2 | D16: Samlet prisloft
C17: Fane nr. 3 | D17: Driftsomkostninger
C18: Fane nr. 4 | D18: Historiske investeringer
C19: Fane nr. 5 | D19: Gennemførte investeringer
C20: Fane nr. 6 | D20: Korrektion investeringer
C21: Fane nr. 7 | D21: Planlagte investeringer
C22: Fane nr. 8 | D22: 1:1 omkostninger
C23: Fane nr. 9 | D23: Miljø- og servicemål
C24: Fane nr. 10 | D24: Klimatilpasning
C25: Fane nr. 11 | D25: Nettofinansielle poster
C26: Fane nr. 12 | D26: Over- eller underdækning
C27: Fane nr. 13 | D27: Kontrol med indtægtsrammen og oversigt over ekstraordinære effektiviseringsgevinster

Sheet 2. Samlet prisloft
A1: ='1. Forside'!A1 -> Esbjerg Spildevand A/S
B4: Fane 2. Samlet prisloft for 2015
B6: Driftsomkostninger
B7: Driftsomkostninger i prisloftet for 2014 | C7: ='3. Driftsomkostninger'!C20 -> 72010303.24 | D7: kr.
B8: Bortfald af væsentlige omkostninger | C8: =-'3. Driftsomkostninger'!C16 -> 0 | D8: kr.
B9: Korrektion for prisudviklingen 2014-2015 | C9: ='3. Driftsomkostninger'!C22 -> 57608.24259 | D9: kr.
B10: Forhøjelse til effektivt niveau iht. benchmarkingen | C10: ='3. Driftsomkostninger'!C28 -> 0 | D10: kr.
B11: Korrektion for generelt effektiviseringskrav | C11: =-'3. Driftsomkostninger'!C34 -> -316845.3343 | D11: kr.
B12: Korrektion for individuelt effektiviseringskrav | C12: =-'3. Driftsomkostninger'!C43 -> -3080240.721 | D12: kr.
B13: Driftsomkostninger i alt | C13: =SUM(C7:C12) -> 68670825.43 | D13: kr. | E13: =C13 -> 68670825.43 | F13: kr.
B14: Investeringer
B15: Tillæg for historiske investeringer | C15: ='4. Historiske investeringer'!C9 -> 76292156.6 | D15: kr.
B16: Tillæg for gennemførte investeringer i 2010-2013 | C16: ='5. Gennemførte investeringer'!F35 -> 6220787.816 | D16: kr.
B17: Korrektion af tillæg for planlagte investeringer vedrørende 2013 | C17: ='6. Korrektion investeringer'!C10 -> -661524.1867 | D17: kr.
B18: Tillæg for planlagte investeringer i 2014 og 2015 | C18: ='7. Planlagte investeringer'!F41 -> 3500935.147 | D18: kr.
B19: Investeringstillæg i alt | C19: =SUM(C15:C18) -> 85352355.38 | D19: kr. | E19: =C19 -> 85352355.38 | F19: kr.
B20: Øvrige omkostninger mv.
B21: Tillæg for 1:1 omkostninger i 2015 | C21: ='8. 1-1 omkostninger'!C10 -> 9733000 | D21: kr.
B22: Tillæg vedr. revisorerklæringer og DANVA/FVD-kontingent | C22: ='8. 1-1 omkostninger'!C18 -> 210000 | D22: kr.
B23: Korrektion ift. faktiske 1:1 omkostninger i 2013 | C23: ='8. 1-1 omkostninger'!C24 -> -2144016 | D23: kr.
B24: Tillæg for driftsomkostninger til miljø- og servicemål i 2015 | C24: ='9. Miljø- og servicemål'!C8 -> 0 | D24: kr.
B25: Korrektion ift. faktiske driftsomkostninger til miljø- og servicemål i 2013 | C25: ='9. Miljø- og servicemål'!C15 -> 0 | D25: kr.
B26: Tillæg for driftsomkostninger til medfinansiering af klimatilpasningsprojekter i 2015 | C26: ='10. Klimatilpasning'!C9 -> 0 | D26: kr.
B27: Korrektion ift. faktiske omkostninger til medfinansiering af klimatilpasningsprojekter i 2013 | C27: ='10. Klimatilpasning'!C16 -> 0 | D27: kr.
B28: Tillæg/fradrag for nettofinansielle poster i 2015 | C28: ='11. Nettofinansielle poster'!C9 -> 8194706 | D28: kr.
B29: Korrektion ift. faktiske nettofinansielle poster i 2013 | C29: ='11. Nettofinansielle poster'!C16 -> -605294 | D29: kr.
B30: Øvrige omkostninger mv. i alt | C30: =SUM(C21:C29) -> 15388396 | D30: kr. | E30: =C30 -> 15388396 | F30: kr.
B31: Historisk over- eller underdækning
B32: Tillæg/fradrag for over- eller underdækning til og med 2010 | C32: ='12. Over- eller underdækning'!C11 -> 0 | D32: kr. | E32: =C32 -> 0 | F32: kr.
B33: Korrektion i forhold til tidligere indtægtsramme
B34: Korrektion for overholdelse af indtægtsramme i prisloft 2013 | C34: ='13. Kontrol med indtægtsrammen'!E27 -> 5628987.851 | D34: kr. | E34: =C34 -> 5628987.851 | F34: kr.
B35: Samlet prisloft
B36: Indtægtsramme i 2015 | E36: =SUM(E13:E34) -> 175040564.7 | F36: kr.
B37: Debiteret vandmængde i 2013 | E37: 6211979 | F37: m3
B38: Prisloft 2015 | E38: =E36/E37 -> 28.17790669 | F38: kr./m3

Sheet 3. Driftsomkostninger
A1: ='1. Forside'!A1 -> Esbjerg Spildevand A/S
B4: Fane 3. Driftsomkostninger
B6: Driftsomkostningerne i prisloftet for 2014
B7: Korrigerede driftsomkostninger i prisloftet for 2013 (DOiPL 2013) | C7: 70946111.57 | D7: kr.
B8: Prisfremskrivning 1,5 pct. | C8: =0.015*SUM(C7:C7) -> 1064191.673 | D8: kr.
B9: Generelt effektiviseringskrav (0 pct.) | C9: 0 | D9: kr.
B10: Individuelt effektiviseringskrav | C10: 0 | D10: kr.
B11: Driftsomkostningerne i prisloftet for 2014 (DOiPL 2014) | C11: =SUM(C7:C10) -> 72010303.24 | D11: kr.
B14: Korrektion for forventet bortfald af væsentlige omkostninger
B15: Selskabets indberettede bortfald af væsentlige omkostninger inden 2015 | C15: 0 | D15: kr.
B16: Korrektion for forventet bortfald | C16: =SUM(C15:C15) -> 0 | D16: kr.
B19: Korrektion for prisudviklingen fra 2014-2015
B20: Driftsomkostningerne i prisloftet for 2014 | C20: =C11-C16 -> 72010303.24 | D20: kr.
B21: Prisudvikling 2014 - 2015 | C21: 0.08 | D21: pct.
B22: Korrektion for prisudvikling | C22: =C20*(C21/100) -> 57608.24259 | D22: kr.
B25: Eventuel forhøjelse til effektivt niveau iht. benchmarkingen
B26: Selskabets effektive driftsomkostninger iht. benchmarkingen | C26: 50436016.39 | D26: kr.
B27: Selskabets pristalskorrigerede driftsomkostninger i 2015-niveau | C27: =C20+C22 -> 72067911.48 | D27: kr.
B28: Eventuel forhøjelse til effektivt niveau | C28: =IF(C27>C26,0,C26-C27) -> 0 | D28: kr.
B31: Korrektion for generelt effektiviseringskrav
B32: Driftsomkostningerne i prisloftet for 2014 | C32: =C20 -> 72010303.24 | D32: kr.
B33: Generelt effektiviseringskrav | C33: 0.44 | D33: pct.
B34: Endeligt generelt effektiviseringskrav | C34: =C32*(C33/100) -> 316845.3343 | D34: kr.
B37: Korrektion for individuelt effektiviseringskrav
B38: Rå effektiviseringspotentiale | C38: 21883931.15 | D38: kr.
B39: Effektiviseringspotentiale efter eventuel korrektion for særlige forhold | C39: 21574286.85 | D39: kr.
B40: Effektiviseringspotentiale efter forsigtighedshensyn | C40: 12320962.88 | D40: kr.
B41: Effektiviseringspotentiale efter eventuel korrektion for sammensætning af signifikante costdrivere | C41: 12320962.88 | D41: kr.
B42: Umiddelbart effektiviseringskrav | C42: =C41/4 -> 3080240.721 | D42: kr.
B43: Endeligt individuelt effektiviseringskrav | C43: =IF(C42>0.05*C20,0.05*C20,IF(C42<0.01*C20,0,C42)) -> 3080240.721 | D43: kr.

Sheet 4. Historiske investeringer
A1: ='3. Driftsomkostninger'!A1 -> Esbjerg Spildevand A/S
B4: Fane 4. Historiske investeringer
B6: Tillæg for historiske investeringer
B7: Værdi af selskabets materielle anlægsaktiver pr. 1. januar 2010 | C7: 3036071245 | D7: kr.
B8: Den årlige standardafskrivning på de materielle anlægsaktiver iht. POLKA | C8: 76292156.6 | D8: kr.
B9: Tillæg i alt i 2015 | C9: =C8 -> 76292156.6 | D9: kr.

Sheet 5. Gennemførte investeringer
A1: ='4. Historiske investeringer'!A1 -> Esbjerg Spildevand A/S
B4: Fane 5. Gennemførte investeringer i 2010 - 2013
B6: Tillæg for gennemførte investeringer i 2013
B7: Beskrivelse af investeringen | C7: Årstal | D7: Std. levetid (år) | E7: Anskaffelses-pris (kr.) | F7: Afskrivning
B8: Efterklaringstanke, Mek/El | C8: 2013 | D8: 20 | E8: 284396 | F8: =E8/D8 -> 14219.8 | G8: kr.
B9: Efterklaringstanke, SRO | C9: 2013 | D9: 10 | E9: 189597 | F9: =E9/D9 -> 18959.7 | G9: kr.
B10: Forsinkelsesbassiner, lukkede uden automatisk rensning og SRO Miljøklasse B (mindre end 1.000 m3) | C10: 2013 | D10: 50 | E10: 136391 | F10: 2727.82 | G10: kr.
B11: Arbejdsplads | C11: 2013 | D11: 5 | E11: 53600 | F11: 10720 | G11: kr.
B12: Beluftningstanke, Mek/EL | C12: 2013 | D12: 20 | E12: 215993 | F12: 10799.65 | G12: kr.
B13: Efterklaringstanke, Konstruktioner | C13: 2013 | D13: 60 | E13: 473993 | F13: 7899.883333 | G13: kr.
B14: Indløb-/udløbsarrangement | C14: 2013 | D14: 75 | E14: 107305 | F14: 1430.733333 | G14: kr.
B15: Jordbassin Klasse A | C15: 2013 | D15: 50 | E15: 1432298 | F15: 28645.96 | G15: kr.
B16: Køretøjer, personbil | C16: 2013 | D16: 5 | E16: 450912 | F16: 90182.4 | G16: kr.
B17: Køretøjer, små lastvogne (< 3.500 kg.) | C17: 2013 | D17: 5 | E17: 501014 | F17: 100202.8 | G17: kr.
B18: Ledningsnet = Ø 200 mm | C18: 2013 | D18: 75 | E18: 10027404 | F18: 133698.72 | G18: kr.
B19: Pumpestationer i brønde (< 6,25 m2), Mek/EL | C19: 2013 | D19: 20 | E19: 258144 | F19: 12907.2 | G19: kr.
B20: Pumpestationer i brønde (< 6,25 m2), SRO | C20: 2013 | D20: 10 | E20: 64536 | F20: 6453.6 | G20: kr.
B21: Rådnetanke, slam, Konstruktioner | C21: 2013 | D21: 60 | E21: 940425 | F21: 15673.75 | G21: kr.
B22: Rådnetanke, slam, Mek/EL | C22: 2013 | D22: 20 | E22: 117553 | F22: 5877.65 | G22: kr.
B23: Rådnetanke, slam, SRO | C23: 2013 | D23: 10 | E23: 117553 | F23: 11755.3 | G23: kr.
B24: Slutafvanding, slam - lavteknologisk (slambede), Mek/EL | C24: 2013 | D24: 20 | E24: 1929754 | F24: 96487.7 | G24: kr.
B25: Stik | C25: 2013 | D25: 75 | E25: 620371 | F25: 8271.613333 | G25: kr.
B26: Strømpeforing = Ø 200 mm | C26: 2013 | D26: 50 | E26: 79476 | F26: 1589.52 | G26: kr.
B27: Strømpeforing Ø 200 mm < Ledningsnet = Ø 500 mm | C27: 2013 | D27: 50 | E27: 5563164 | F27: 111263.28 | G27: kr.
B28: Ø 1000 mm < Ledningsnet = Ø 1200 mm | C28: 2013 | D28: 75 | E28: 6679936 | F28: 89065.81333 | G28: kr.
B29: Ø 1200 mm < Ledningsnet = Ø 1600 mm | C29: 2013 | D29: 75 | E29: 508657 | F29: 6782.093333 | G29: kr.
B30: Ø 200 mm < Ledningsnet = Ø 500 mm | C30: 2013 | D30: 75 | E30: 25161045 | F30: 335480.6 | G30: kr.
B31: Ø 500 mm < Ledningsnet = Ø 800 mm | C31: 2013 | D31: 75 | E31: 11140655 | F31: 148542.0667 | G31: kr.
B32: Ø 800 mm < Ledningsnet = Ø 1000 mm | C32: 2013 | D32: 75 | E32: 7457344 | F32: 99431.25333 | G32: kr.
B33: Tillæg for 2013 | F33: =SUM(F8:F32) -> 1369068.907 | G33: kr.
B34: Tillæg for 2010 - 2012 | F34: 4851718.909 | G34: kr.
B35: Samlet tillæg for gennemførte investeringer | F35: =F33+F34 -> 6220787.816 | G35: kr.

Sheet 6. Korrektion investeringer
A1: ='5. Gennemførte investeringer'!A1 -> Esbjerg Spildevand A/S
B4: Fane 6. Korrektion af tillæg for planlagte investeringer
B6: Korrektion af tillæg for planlagte investeringer vedr. 2013
B7: Tillæg for planlagte investeringer i 2013 i prisloft 2013 | C7: 1598128 | D7: kr.
B8: Tillæg for planlagte investeringer i 2013 i prisloft 2014 | C8: 1801534 | D8: kr.
B9: Selskabets faktiske afskrivninger på gennemførte investeringer i 2013 | C9: ='5. Gennemførte investeringer'!F33 -> 1369068.907 | D9: kr.
B10: Korrektion af tillæg for planlagte investeringer vedr. 2013 | C10: =C9-C7+C9-C8 -> -661524.1867 | D10: kr.

Sheet 7. Planlagte investeringer
A1: ='6. Korrektion investeringer'!A1 -> Esbjerg Spildevand A/S
B4: Fane 7. Planlagte investeringer
B6: Tillæg for planlagte investeringer i 2014 og 2015
B7: Beskrivelse af investeringen | C7: Årstal | D7: Std. levetid (år) | E7: Anskaffelses-pris (kr.) | F7: Afskrivning
B8: Efterbehandlingsanlæg (sandfilter), Konstruktioner | C8: 2014 | D8: 60 | E8: 607451 | F8: =E8/D8 -> 10124.18333 | G8: kr.
B9: Indløb med riste, Mek/EL | C9: 2014 | D9: 20 | E9: 2821890 | F9: =E9/D9 -> 141094.5 | G9: kr.
B10: Jordbassin Klasse A | C10: 2014 | D10: 50 | E10: 131155 | F10: =E10/D10 -> 2623.1 | G10: kr.
B11: Jordbassin Klasse B | C11: 2014 | D11: 50 | E11: 775800 | F11: 15516 | G11: kr.
B12: Ledningsnet = Ø 200 mm | C12: 2014 | D12: 75 | E12: 2899428 | F12: 38659.04 | G12: kr.
B13: Stik | C13: 2014 | D13: 75 | E13: 3385306 | F13: 45137.41333 | G13: kr.
B14: Strømpeforing = Ø 200 mm | C14: 2014 | D14: 50 | E14: 288403 | F14: 5768.06 | G14: kr.
B15: Ø 200 mm < Ledningsnet = Ø 500 mm | C15: 2014 | D15: 75 | E15: 2557580 | F15: 34101.06667 | G15: kr.
B16: Ø 500 mm < Ledningsnet = Ø 800 mm | C16: 2014 | D16: 75 | E16: 61278840 | F16: 817051.2 | G16: kr.
B17: Pumpestationer i brønde (< 6,25 m2), Konstruktioner | C17: 2014 | D17: 50 | E17: 1384283 | F17: 27685.66 | G17: kr.
B18: Pumpestationer i brønde (< 6,25 m2), Mek/EL | C18: 2014 | D18: 20 | E18: 1384283 | F18: 69214.15 | G18: kr.
B19: Pumpestationer i brønde (< 6,25 m2), SRO | C19: 2014 | D19: 10 | E19: 1384283 | F19: 138428.3 | G19: kr.
B20: Slutafvanding, slam - højteknologisk (centrifuger), Mek/El | C20: 2014 | D20: 20 | E20: 5446757 | F20: 272337.85 | G20: kr.
B21: Rådnetanke, slam, Mek/EL | C21: 2014 | D21: 20 | E21: 205881 | F21: 10294.05 | G21: kr.
B22: Beluftningstanke, Mek/EL | C22: 2014 | D22: 20 | E22: 448660 | F22: 22433 | G22: kr.
B23: Efterbehandlingsanlæg (sandfilter), Konstruktioner | C23: 2015 | D23: 60 | E23: 607451 | F23: 10124.18333 | G23: kr.
B24: Indløb med riste, Mek/EL | C24: 2015 | D24: 20 | E24: 2821890 | F24: 141094.5 | G24: kr.
B25: Jordbassin Klasse A | C25: 2015 | D25: 50 | E25: 131155 | F25: 2623.1 | G25: kr.
B26: Jordbassin Klasse B | C26: 2015 | D26: 50 | E26: 775800 | F26: 15516 | G26: kr.
B27: Ledningsnet = Ø 200 mm | C27: 2015 | D27: 75 | E27: 2899428 | F27: 38659.04 | G27: kr.
B28: Stik | C28: 2015 | D28: 75 | E28: 3385306 | F28: 45137.41333 | G28: kr.
B29: Strømpeforing = Ø 200 mm | C29: 2015 | D29: 50 | E29: 288403 | F29: 5768.06 | G29: kr.
B30: Ø 200 mm < Ledningsnet = Ø 500 mm | C30: 2015 | D30: 75 | E30: 2557580 | F30: 34101.06667 | G30: kr.
B31: Ø 500 mm < Ledningsnet = Ø 800 mm | C31: 2015 | D31: 75 | E31: 61278840 | F31: 817051.2 | G31: kr.
B32: Pumpestationer i brønde (< 6,25 m2), Konstruktioner | C32: 2015 | D32: 50 | E32: 1384283 | F32: 27685.66 | G32: kr.
B33: Pumpestationer i brønde (< 6,25 m2), Mek/EL | C33: 2015 | D33: 20 | E33: 1384283 | F33: 69214.15 | G33: kr.
B34: Pumpestationer i brønde (< 6,25 m2), SRO | C34: 2015 | D34: 10 | E34: 1384283 | F34: 138428.3 | G34: kr.
B35: Slutafvanding, slam - højteknologisk (centrifuger), Mek/El | C35: 2015 | D35: 20 | E35: 5446757 | F35: 272337.85 | G35: kr.
B36: Rådnetanke, slam, Mek/EL | C36: 2015 | D36: 20 | E36: 205881 | F36: 10294.05 | G36: kr.
B37: Beluftningstanke, Mek/EL | C37: 2015 | D37: 20 | E37: 448660 | F37: 22433 | G37: kr.
B38: Oversvømmelseskort | C38: 2015 | D38: 5 | E38: 1000000 | F38: 200000 | G38: kr.
B39: Tillæg for 2014 | F39: =SUMIF(C8:C38,"2014",F8:F38) -> 1650467.573 | G39: kr.
B40: Tillæg for 2015 | F40: =SUMIF(C8:C38,"2015",F8:F38) -> 1850467.573 | G40: kr.
B41: Tillæg i alt | F41: =F39+F40 -> 3500935.147 | G41: kr.

Sheet 8. 1-1 omkostninger
A1: ='7. Planlagte investeringer'!A1 -> Esbjerg Spildevand A/S
B4: Fane 8. 1:1 omkostninger
B6: Tillæg for budgetterede 1:1 omkostninger i 2015
B7: Betaling til Forsyningssekretariatet | C7: 33000 | D7: kr.
B8: Betaling af selskabsskatter | C8: 6700000 | D8: kr.
B9: Spildevandsafgift | C9: 3000000 | D9: kr.
B10: Tillæg i alt | C10: =SUM(C7:C9) -> 9733000 | D10: kr.
B15: Tillæg for budgetterede nødvendige udgifter til revisorerklæringer samt ordinært medlemskab af DANVA og FVD i 2015
B16: Betaling for ordinært medlemskab af DANVA/FVD | C16: 200000 | D16: kr.
B17: Betaling for revisorerklæringer | C17: 10000 | D17: kr.
B18: Tillæg i alt | C18: =SUM(C16:C17) -> 210000 | D18: kr.
B21: Korrektion af tillæg for faktiske 1:1 omkostninger (inkl. revisorerklæringer og ordinært medlemskab af DANVA/FVD) i 2013
B22: Selskabets faktiske 1:1 omkostninger mv. i 2013, jf. reguleringsregnskabet | C22: 2563984 | D22: kr.
B23: Tillæg for budgetterede 1:1 omkostninger mv. i prisloft 2013 | C23: 4708000 | D23: kr.
B24: Korrektion af tillæg for budgetterede 1:1 omkostninger mv. i 2013 | C24: =C22-C23 -> -2144016 | D24: kr.

Sheet 9. Miljø- og servicemål
A1: ='8. 1-1 omkostninger'!A1 -> Esbjerg Spildevand A/S
B4: Fane 9. Driftsomkostninger til miljø- og servicemål
B6: Tillæg for budgetterede driftsomkostninger til miljø- og servicemål i 2015
C7: 0 | D7: kr.
B8: Tillæg i alt | C8: =SUM(C7:C7) -> 0 | D8: kr.
B12: Korrektion af tillæg for faktiske driftsomkostninger til miljø- og servicemål i 2013
B13: Selskabets faktiske driftsomkostninger til miljø- og servicemål i 2013, jf. reguleringsregnskabet | C13: 0 | D13: kr.
B14: Tillæg for budgetterede driftsomkostninger til miljø- og servicemål i prisloft 2013 | C14: 0 | D14: kr.
B15: Korrektion af tillæg for budgetterede driftsomkostninger til miljø- og servicemål i 2013 | C15: =C13-C14 -> 0 | D15: kr.

Sheet 10. Klimatilpasning
A1: ='9. Miljø- og servicemål'!A1 -> Esbjerg Spildevand A/S
B4: Fane 10. Medfinansiering af klimatilpasningsprojekter
B7: Tillæg for budgetterede omkostninger til medfinansiering af klimatilpasningsprojekter i 2015
C8: 0 | D8: kr.
B9: Tillæg i alt | C9: =SUM(C8:C8) -> 0 | D9: kr.
B13: Korrektion af tillæg for faktiske omkostninger til medfinansiering af klimatilpasningsprojekter i 2013
B14: Selskabets faktiske driftsomkostninger til klimatilpasningsprojekter i 2013, jf. reguleringsregnskabet | C14: 0 | D14: kr.
B15: Tillæg for budgetterede driftsomkostninger til klimatilpasningsprojekter i prisloft 2013 | C15: 0 | D15: kr.
B16: Korrektion af tillæg for budgetterede omkostninger til klimatilpasningsprojekter i 2013 | C16: =C14-C15 -> 0 | D16: kr.

Sheet 11. Nettofinansielle poster
A1: ='10. Klimatilpasning'!A1 -> Esbjerg Spildevand A/S
B4: Fane 11. Nettofinansielle poster
B6: Tillæg for budgetterede nettofinansielle poster i 2015
B7: Budgetterede renteudgifter og gebyrer i 2015 | C7: 8558081 | D7: kr.
B8: Budgetterede renteindtægter i 2015 | C8: 363375 | D8: kr.
B9: Tillæg/fradrag i alt | C9: =C7-C8 -> 8194706 | D9: kr.
B13: Korrektion af tillæg for faktiske nettofinansielle poster i 2013
B14: Selskabets faktiske nettofinansielle poster i 2013, jf. reguleringsregnskabet | C14: 8194706 | D14: kr.
B15: Tillæg for budgetterede nettofinansielle poster i prisloft 2013 | C15: 8800000 | D15: kr.
B16: Korrektion af tillæg for budgetterede nettofinansielle poster i 2013 | C16: =C14-C15 -> -605294 | D16: kr.

Sheet 12. Over- eller underdækning (hidden)
A1: ='11. Nettofinansielle poster'!A1 -> Esbjerg Spildevand A/S
B4: Fane 12. Over- eller underdækning til og med 2010
B6: Tillæg/fradrag for over- eller underdækning til og med 2010
B7: Opgjort over- eller underdækning per 31. december 2010 | C7: 0 | D7: kr.
B8: Heraf beløb indregnet i prislofterne for 2012 - 2014 | C8: 0 | D8: kr.
B9: Endnu ikke indregnet over- eller underdækning | C9: =C7-C8 -> 0 | D9: kr.
B10: Resterende indregningsperiode (fastsat i prisloftet for 2012) | C10: 0 | D10: år
B11: Tillæg/fradrag i alt | C11: =IF(C7=0,0,C9/C10) -> 0 | D11: kr.

Sheet 13. Kontrol med indtægtsrammen
A1: ='12. Over- eller underdækning'!A1 -> Esbjerg Spildevand A/S
B4: Fane 13. Korrektion for overholdelse af indtægtsrammen i prisloftet for 2013
B6: Samlet opgørelse vedrørende overholdelse af indtægtsrammen i prisloftet for 2013
B7: Indtægtsramme i prisloftet for 2013 | E7: 179641676.7 | F7: kr.
B8: Ikke anvendt likviditet vedrørende investeringer i 2013
B9: Tillæg for historiske investeringer | C9: 76929436.31 | D9: kr.
B10: Tillæg for gennemførte investeringer i 2011 | C10: 2400033 | D10: kr.
B11: Korrektion af tillæg for planlagte investeringer i 2011 | C11: -1440440 | D11: kr.
B12: Tillæg for planlagte investeringer i 2012 og 2013 | C12: 3144530 | D12: kr.
B13: Indtægter fra tilslutningsbidrag | C13: 3692885 | D13: kr.
B14: Indtægter fra salg af anlægsaktiver | C14: 7554 | D14: kr.
B15: Erstatninger vedr. anlægsaktiver mv. | C15: 0 | D15: kr.
B16: Ekstraordinær effektiviseringsgevinst anvendt til investeringer | C16: 0 | D16: kr.
B17: Udgifter til investeringer | C17: -84045717 | D17: kr.
B18: Ikke anvendt likviditet vedr. investeringer i alt | C18: =SUM(C9:C17) -> 688281.311 | D18: kr. | E18: =IF(C18<0,0,-C18) -> -688281.311 | F18: kr.
B19: Ekstraordinære effektiviseringsgevinster anvendt til takstnedsættelse
B20: Ekstraordinær effektiviseringsgevinst anvendt til takstnedsættelse | C20: =E36 -> 13666843.57 | D20: kr. | E20: =-C20 -> -13666843.57 | F20: kr.
B21: Korrektion af ikke opkrævet tillæg fra 2011 i prisloft 2013
B22: Korrektion af ikke opkrævet tillæg fra 2011 i prisloft 2013 | C22: 0 | D22: kr. | E22: =-C22 -> 0 | F22: kr.
B23: Indtægter fra primære aktiviteter mv.
B24: Indtægter fra kubikmetertakster, faste takster, særbidrag, målergebyrer samt andre takster og gebyrer | C24: 158858649 | D24: kr.
B25: Andre indtægter i prisloftåret, som selskabet har opnået i forbindelse med eller som følge af selskabets primære aktiviteter | C25: 798915 | D25: kr.
B26: Indtægter fra primære aktiviteter mv. i alt | C26: =SUM(C24:C25) -> 159657564 | D26: kr. | E26: =-C26 -> -159657564 | F26: kr.
B27: Tillæg/fradrag i prisloftet for 2015 i alt | E27: =E7+E18+E20+E22+E26 -> 5628987.851 | F27: kr.
B31: Oversigt over ekstraordinære effektiviseringsgevinster
C33: 2012 | E33: 2013 | G33: 2014 | I33: 2015 | K33: 2016
B34: Indhentet ekstraordinær effektiviseringsgevinst | C34: 13005599 | D34: kr. | E34: 13666843.57 | F34: kr. | H34: kr. | J34: kr. | L34: kr.
B35: Gevinst anvendt til investeringer | C35: 860770 | D35: kr. | E35: 0 | F35: kr. | H35: kr. | J35: kr. | L35: kr.
B36: Gevinst anvendt til takstnedsættelse | C36: 12144829 | D36: kr. | E36: 13666843.57 | F36: kr. | H36: kr. | J36: kr. | L36: kr.
B37: Korrektion for effektiviseringsgevinst der ikke er anvendt inden 4 år | C37: 0 | D37: kr. | E37: 0 | F37: kr. | H37: kr. | J37: kr. | K37: =IF(C38>SUM(E35:I36),C38-SUM(E35:I36),0)*-1 -> 0 | L37: kr.
B38: Resterende gevinst | C38: =C34-C35-C36 -> 0 | D38: kr. | E38: =C38+E34-E35-E36 -> 0 | F38: kr. | G38: =E38+G34-G35-G36 -> 0 | H38: kr. | I38: =G38+I34-I35-I36 -> 0 | J38: kr. | K38: =K34-K35-K36+K37+I38 -> 0 | L38: kr.
